fUST/lending_fUST_20250514
["ID","MTS","AMOUNT","RATE_DAILY","PERIOD"]
[360941152,1747159847553,-151.0,0.00013699,2]
[360941153,1747159847566,-151.0,0.00013699,2]
[360941154,1747159847579,-151.0,0.00013699,2]
[360941155,1747159847592,-151.0,0.00013699,2]
[360941156,1747159847605,-151.0,0.00013699,2]
[360941157,1747159847619,-151.0,0.00013699,2]
[360941158,1747159847631,-151.0,0.00013699,2]
[360941159,1747159847644,-151.0,0.00013699,2]
[360941160,1747159847656,-235.183174,0.00013699,2]
[360941161,1747159847669,-1808.061313,0.00013699,2]
[360941162,1747159847683,-893.044696,0.00013699,2]
[360941163,1747159847696,-500.0,0.00013699,2]
[360941164,1747159847710,-500.0,0.00013699,2]
[360941165,1747159847722,-500.0,0.00013699,2]
[360941166,1747159847735,-500.0,0.00013699,2]
[360941167,1747159847748,-500.0,0.00013699,2]
[360941168,1747159847760,-500.0,0.00013699,2]
[360941169,1747159847773,-304.4235237,0.00013699,2]
[360941170,1747159847786,-152.14145388,0.00013699,2]
[360941171,1747159847798,-500.0,0.00013699,2]
[360941172,1747159847811,-500.0,0.00013699,2]
[360941173,1747159847823,-500.0,0.00013699,2]
[360941174,1747159847836,-500.0,0.00013699,2]
[360941175,1747159847848,-500.0,0.00013699,2]
[360941176,1747159847861,-500.0,0.00013699,2]
[360941177,1747159847875,-500.15584608,0.00013699,2]
[360941178,1747159847887,-500.50750202,0.00013699,2]
[360941179,1747159847901,-500.0,0.00013699,2]
[360941180,1747159847914,-592.13272486,0.00013699,2]
[360941181,1747159847927,-500.0,0.00013699,2]
[360941182,1747159847939,-500.0,0.00013699,2]
[360941183,1747159847952,-500.0,0.00013699,2]
[360941184,1747159847964,-500.0,0.00013699,2]
[360941185,1747159847977,-500.0,0.00013699,2]
[360941186,1747159847990,-500.09853345,0.00013699,2]
[360941187,1747159848003,-500.0,0.00013699,2]
[360941188,1747159848015,-500.0,0.00013699,2]
[360941189,1747159848028,-500.0,0.00013699,2]
[360941190,1747159848042,-500.0,0.00013699,2]
[360941191,1747159848055,-500.0,0.00013699,2]
[360941192,1747159848067,-152.04386623,0.00013699,2]
[360941193,1747159848081,-500.0,0.00013699,2]
[360941194,1747159848094,-152.0,0.00013699,2]
[360941195,1747159848107,-248.0,0.00013699,2]
[360941196,1747159848120,-519.940163,0.00013699,2]
[360941197,1747159848133,-519.940163,0.00013699,2]
[360941198,1747159848146,-151.0,0.00013699,2]
[360941199,1747159848162,-151.0,0.00013699,2]
[360941200,1747159848176,-151.0,0.00013699,2]
[360941201,1747159848191,-161.660474,0.00013699,2]
[360941202,1747159848204,-161.660464,0.00013699,2]
[360941203,1747159848216,-265.711611,0.00013699,2]
[360941204,1747159848230,-500.0,0.00013699,2]
[360941205,1747159848245,-500.0,0.00013699,2]
[360941206,1747159848257,-500.0,0.00013699,2]
[360941207,1747159848270,-500.0,0.00013699,2]
[360941208,1747159848284,-500.0,0.00013699,2]
[360941209,1747159848297,-500.0,0.00013699,2]
[360941210,1747159848310,-500.0,0.00013699,2]
[360941211,1747159848323,-500.0,0.00013699,2]
[360941212,1747159848336,-500.0,0.00013699,2]
[360941213,1747159848349,-300.0,0.00013699,2]
[360941214,1747159848362,-500.0,0.00013699,2]
[360941215,1747159848375,-500.0,0.00013699,2]
[360941216,1747159848388,-500.0,0.00013699,2]
[360941217,1747159848402,-500.0,0.00013699,2]
[360941218,1747159848415,-500.0,0.00013699,2]
[360941219,1747159848428,-500.0,0.00013699,2]
[360941220,1747159848441,-500.0,0.00013699,2]
[360941221,1747159848454,-500.0,0.00013699,2]
[360941222,1747159848467,-500.0,0.00013699,2]
[360941223,1747159848480,-179.9460162,0.00013733,2]
[360941224,1747159848494,-692.0,0.00013748,2]
[360941225,1747159848508,-212.01219836,0.00013748,2]
[360941226,1747159848521,-692.0,0.00013748,2]
[360941227,1747159848533,-202.92253676,0.00013748,2]
[360941228,1747159848546,-692.0,0.00013748,2]
[360941229,1747159848559,-692.0,0.00013748,2]
[360941230,1747159848572,-152.0,0.00013748,2]
[360941231,1747159848586,-152.0,0.00013748,2]
[360941232,1747159848600,-152.0,0.00013748,2]
[360941233,1747159848613,-692.0,0.00013748,2]
[360941234,1747159848626,-166.0,0.00013748,2]
[360941235,1747159848638,-152.0,0.00013748,2]
[360941236,1747159848651,-692.0,0.00013748,2]
[360941237,1747159848663,-152.0,0.00013748,2]
[360941238,1747159848676,-160.0,0.00013748,2]
[360941239,1747159848689,-162.89753949,0.00013748,2]
[360941240,1747159848701,-152.0,0.00013748,2]
[360941241,1747159848713,-692.0,0.00013748,2]
[360941242,1747159848726,-290.48685551,0.00013748,2]
[360941243,1747159848740,-166.0,0.00013748,2]
[360941244,1747159848753,-692.0,0.00013748,2]
[360941245,1747159848766,-387.53695115,0.00013748,2]
[360941246,1747159848779,-151.0,0.00013748,2]
[360941247,1747159848796,-151.0,0.00013748,2]
[360941248,1747159848808,-151.0,0.00013748,2]
[360941249,1747159849172,-320.0,0.00013748,2]
[360941250,1747159849212,-151.0,0.00013748,2]
[360941251,1747159849250,-320.0,0.00013748,2]
[360941252,1747159849261,-151.0,0.00013748,2]
[360941253,1747159849272,-320.0,0.00013748,2]
[360941254,1747159849282,-151.0,0.00013748,2]
[360941255,1747159849293,-320.0,0.00013748,2]
[360941256,1747159849303,-151.0,0.00013748,2]
[360941257,1747159849313,-151.0,0.00013748,2]
[360941258,1747159849323,-320.0,0.00013748,2]
[360941259,1747159849332,-151.0,0.00013748,2]
[360941260,1747159849342,-320.0,0.00013748,2]
[360941261,1747159849352,-151.0,0.00013748,2]
[360941262,1747159849363,-320.0,0.00013748,2]
[360941263,1747159849373,-151.0,0.00013748,2]
[360941264,1747159849386,-320.0,0.00013748,2]
[360941265,1747159849397,-151.0,0.00013748,2]
[360941266,1747159849408,-320.0,0.00013748,2]
[360941267,1747159849419,-440.97005123,0.00013748,2]
[360941268,1747159849430,-151.0,0.00013748,2]
[360941269,1747159849441,-151.0,0.00013748,2]
[360941270,1747159849452,-151.0,0.00013748,2]
[360941271,1747159849462,-151.0,0.00013748,2]
[360941272,1747159849473,-151.0,0.00013748,2]
[360941273,1747159849482,-151.0,0.00013748,2]
[360941274,1747159849492,-151.0,0.00013748,2]
[360941275,1747159849502,-230.89635605,0.00013748,2]
[360941276,1747159849512,-160.0,0.00013748,2]
[360941277,1747159849522,-160.0,0.00013748,2]
[360941278,1747159849531,-160.0,0.00013748,2]
[360941279,1747159849541,-159.9559305,0.00013748,2]
[360941280,1747159849551,-320.0,0.00013748,2]
[360941281,1747159849561,-320.0,0.00013748,2]
[360941282,1747159849571,-320.0,0.00013748,2]
[360941283,1747159849580,-320.0,0.00013748,2]
[360941284,1747159849590,-320.0,0.00013748,2]
[360941285,1747159849600,-320.0,0.00013748,2]
[360941286,1747159849609,-320.0,0.00013748,2]
[360941287,1747159849619,-320.0,0.00013748,2]
[360941288,1747159849628,-320.0,0.00013748,2]
[360941289,1747159849638,-320.0,0.00013748,2]
[360941290,1747159849647,-320.0,0.00013748,2]
[360941291,1747159849657,-320.0,0.00013748,2]
[360941292,1747159849667,-320.0,0.00013748,2]
[360941293,1747159849678,-320.0,0.00013748,2]
[360941294,1747159849690,-320.0,0.00013748,2]
[360941295,1747159849700,-320.0,0.00013748,2]
[360941296,1747159849710,-320.0,0.00013748,2]
[360941297,1747159849720,-166.0,0.00013753,2]
[360941298,1747159849730,-170.0,0.00013753,2]
[360941299,1747159849740,-692.0,0.00013753,2]
[360941300,1747159849750,-300.55021689,0.00013753,2]
[360941301,1747159849760,-692.0,0.00013753,2]
[360941302,1747159849769,-692.0,0.00013753,2]
[360941303,1747159849779,-692.0,0.00013753,2]
[360941304,1747159849789,-555.6716496,0.00013753,2]
[360941305,1747159849798,-320.0,0.00013753,2]
[360941306,1747159849809,-328.16092609,0.00013753,2]
[360941307,1747159849819,-320.0,0.00013753,2]
[360941308,1747159849828,-320.0,0.00013753,2]
[360941309,1747159849838,-320.0,0.00013753,2]
[360941310,1747159849847,-274.076795,0.00013753,2]
[360941311,1747159849857,-351.301657,0.00013753,2]
[360941312,1747159849867,-351.301657,0.00013753,2]
[360941313,1747159849877,-151.0,0.00013753,2]
[360941314,1747159849886,-151.0,0.000138,2]
[360941315,1747159849895,-151.0,0.000138,2]
[360941316,1747159849905,-17226.26699686,0.000138,2]
[360941317,1747159849914,-17226.2669967,0.000138,2]
[360941318,1747159849924,-17226.2669967,0.000138,2]
[360941319,1747159849935,-17226.2669967,0.000138,2]
[360941320,1747159849945,-150.0,0.00013808,2]
[360941321,1747159849954,-150.0,0.00013808,2]
[360941322,1747159849964,-150.0,0.00013808,2]
[360941323,1747159849974,-546.0,0.00013808,2]
[360941324,1747159849983,-710.0,0.00013808,2]
[360941325,1747159849993,-2237.0,0.00013808,2]
[360941326,1747159850003,-404.0,0.00013808,2]
[360941327,1747159850012,-404.0,0.00013808,2]
[360941328,1747159850022,-180.254192,0.00013832,2]
[360941329,1747159850031,-151.0,0.00013832,2]
[360941330,1747159850040,-151.0,0.00013832,2]
[360941331,1747159850050,-519.940163,0.00013832,2]
[360941332,1747159850060,-519.940163,0.00013832,2]
[360941333,1747159850070,-7631.42635605,0.00013832,2]
[360941334,1747159850080,-151.0,0.00013832,2]
[360941335,1747159850090,-151.0,0.00013832,2]
[360941336,1747159850100,-46635.99308002,0.00013832,2]
[360941337,1747159850109,-320.238443,0.00013832,2]
[360941338,1747159850119,-7255.55989621,0.00013832,2]
[360941339,1747159850128,-600.0,0.00013832,2]
[360941340,1747159850138,-17226.2669967,0.00013866,2]
[360941341,1747159850149,-4998.85529382,0.00013872,2]
[360941342,1747159850161,-156.8,0.000139,2]
[360941343,1747159850172,-151.0,0.000139,2]
[360941344,1747159850181,-151.0,0.000139,2]
[360941345,1747159850193,-151.0,0.000139,2]
[360941346,1747159850202,-151.0,0.000139,2]
[360941347,1747159850212,-151.0,0.000139,2]
[360941348,1747159850222,-2554.2643947,0.00013902,2]
[360941349,1747159850234,-1253.2244613,0.0001397,7]
[360941350,1747159850244,-151.0,0.00013972,2]
[360941351,1747159850254,-151.0,0.00013972,2]
[360941352,1747159850263,-177.349862,0.00013972,2]
[360941353,1747159850273,-151.0,0.00013972,2]
[360941354,1747159850283,-151.0,0.00013972,2]
[360941355,1747159850293,-151.0,0.00013972,2]
[360941356,1747159850303,-151.0,0.00013972,2]
[360941357,1747159850313,-351.301657,0.00013972,2]
[360941358,1747159850323,-351.301657,0.00013972,2]
[360941359,1747159850333,-351.301657,0.00013972,2]
[360941360,1747159850342,-351.301657,0.00013972,2]
[360941361,1747159850352,-519.940163,0.00013972,2]
[360941362,1747159850361,-351.301657,0.00013972,2]
[360941363,1747159850371,-519.940163,0.00013972,2]
[360941364,1747159850381,-351.301657,0.00013972,2]
[360941365,1747159850390,-519.940163,0.00013972,2]
[360941366,1747159850400,-351.301657,0.00013972,2]
[360941367,1747159850410,-351.301663,0.00013972,2]
[360941368,1747159850419,-519.940163,0.00013972,2]
[360941369,1747159850428,-519.940163,0.00013972,2]
[360941370,1747159850438,-519.94017,0.00013972,2]
[360941371,1747159850447,-151.0,0.00013972,2]
[360941372,1747159850457,-151.0,0.00013972,2]
[360941373,1747159850467,-151.0,0.00013972,2]
[360941374,1747159850477,-160.692703,0.00013972,2]
[360941375,1747159850486,-320.238443,0.00013972,2]
[360941376,1747159850496,-320.238443,0.00013972,2]
[360941377,1747159850506,-400.0,0.00013972,2]
[360941378,1747159850515,-320.238441,0.00013972,2]
[360941379,1747159850524,-400.0,0.00013972,2]
[360941380,1747159850534,-400.0,0.00013972,2]
[360941381,1747159850544,-400.0,0.00013972,2]
[360941382,1747159850553,-400.0,0.00013972,2]
[360941383,1747159850562,-400.0,0.00013972,2]
[360941384,1747159850571,-691.65,0.00013972,2]
[360941385,1747159850581,-400.0,0.00013972,2]
[360941386,1747159850590,-400.0,0.00013972,2]
[360941387,1747159850600,-400.0,0.00013972,2]
[360941388,1747159850609,-400.0,0.00013972,2]
[360941389,1747159850619,-400.0,0.00013972,2]
[360941390,1747159850629,-400.0,0.00013972,2]
[360941391,1747159850638,-400.0,0.00013972,2]
[360941392,1747159850648,-400.0,0.00013972,2]
[360941393,1747159850658,-1429.32,0.00013972,2]
[360941394,1747159850668,-400.0,0.00013972,2]
[360941395,1747159850677,-400.0,0.00013972,2]
[360941396,1747159850688,-400.0,0.00013972,2]
[360941397,1747159850698,-400.0,0.00013972,2]
[360941398,1747159850708,-670.32,0.00013972,2]
[360941399,1747159850718,-400.0,0.00013972,2]
[360941400,1747159850728,-400.0,0.00013972,2]
[360941401,1747159850737,-629.54,0.00013972,2]
[360941402,1747159850747,-408.0,0.00013972,2]
[360941403,1747159850757,-634.83,0.00013972,2]
[360941404,1747159850767,-618.1,0.00013972,2]
[360941405,1747159850777,-400.0,0.00013972,2]
[360941406,1747159850788,-400.0,0.00013972,2]
[360941407,1747159850799,-451.43036188,0.00013972,2]
[360941408,1747159850808,-428.43,0.00013972,2]
[360941409,1747159850817,-400.0,0.00013972,2]
[360941410,1747159850827,-400.0,0.00013972,2]
[360941411,1747159850837,-810.0,0.00013972,2]
[360941412,1747159850847,-400.0,0.00013972,2]
[360941413,1747159850857,-400.0,0.00013972,2]
[360941414,1747159850866,-1415.53,0.00013972,2]
[360941415,1747159850876,-501.57133569,0.00013972,2]
[360941416,1747159850885,-400.0,0.00013972,2]
[360941417,1747159850895,-400.0,0.00013972,2]
[360941418,1747159850904,-400.0,0.00013972,2]
[360941419,1747159850914,-400.0,0.00013972,2]
[360941420,1747159850924,-400.0,0.00013972,2]
[360941421,1747159850935,-400.0,0.00013972,2]
[360941422,1747159850945,-400.0,0.00013972,2]
[360941423,1747159850954,-400.0,0.00013972,2]
[360941424,1747159850963,-400.0,0.00013972,2]
[360941425,1747159850973,-400.0,0.00013972,2]
[360941426,1747159850982,-400.0,0.00013972,2]
[360941427,1747159850992,-400.0,0.00013972,2]
[360941428,1747159851002,-400.0,0.00013972,2]
[360941429,1747159851012,-400.0,0.00013972,2]
[360941430,1747159851022,-400.0,0.00013972,2]
[360941431,1747159851032,-400.0,0.00013972,2]
[360941432,1747159851041,-400.0,0.00013972,2]
[360941433,1747159851051,-400.0,0.00013972,2]
[360941434,1747159851061,-400.0,0.00013972,2]
[360941435,1747159851070,-406.37,0.00013972,2]
[360941436,1747159851081,-400.0,0.00013972,2]
[360941437,1747159851091,-486.49,0.00013972,2]
[360941438,1747159851102,-400.0,0.00013972,2]
[360941439,1747159851112,-574.64,0.00013972,2]
[360941440,1747159851122,-400.0,0.00013972,2]
[360941441,1747159851132,-1944.55,0.00013972,2]
[360941442,1747159851142,-513.63,0.00013972,2]
[360941443,1747159851155,-400.0,0.00013972,2]
[360941444,1747159851165,-400.0,0.00013972,2]
[360941445,1747159851175,-400.0,0.00013972,2]
[360941446,1747159851184,-400.0,0.00013972,2]
[360941447,1747159851195,-400.0,0.00013972,2]
[360941448,1747159851205,-400.0,0.00013972,2]
[360941449,1747159851216,-400.0,0.00013972,2]
[360941450,1747159851226,-500.0,0.00013972,2]
[360941451,1747159851237,-400.0,0.00013972,2]
[360941452,1747159851247,-963.53,0.00013972,2]
[360941453,1747159851257,-416.47,0.00013972,2]
[360941454,1747159851267,-782.97,0.00013972,2]
[360941455,1747159851277,-400.0,0.00013972,2]
[360941456,1747159851287,-711.19,0.00013972,2]
[360941457,1747159851297,-740.94,0.00013972,2]
[360941458,1747159851308,-400.0,0.00013972,2]
[360941459,1747159851318,-400.0,0.00013972,2]
[360941460,1747159851328,-715.45,0.00013972,2]
[360941461,1747159851338,-410.24053119,0.00013972,2]
[360941462,1747159851348,-400.0,0.00013972,2]
[360941463,1747159851358,-1199.22,0.00013972,2]
[360941464,1747159851368,-681.27,0.00013972,2]
[360941465,1747159851378,-400.0,0.00013972,2]
[360941466,1747159851388,-1101.03,0.00013972,2]
[360941467,1747159851398,-626.74,0.00013972,2]
[360941468,1747159851408,-400.0,0.00013972,2]
[360941469,1747159851419,-400.0,0.00013972,2]
[360941470,1747159851428,-400.0,0.00013972,2]
[360941471,1747159851438,-3119.8,0.00013972,2]
[360941472,1747159851448,-400.0,0.00013972,2]
[360941473,1747159851459,-888.38,0.00013972,2]
[360941474,1747159851468,-400.0,0.00013972,2]
[360941475,1747159851478,-400.0,0.00013972,2]
[360941476,1747159851488,-803.4,0.00013972,2]
[360941477,1747159851498,-400.0,0.00013972,2]
[360941478,1747159851508,-400.0,0.00013972,2]
[360941479,1747159851518,-952.06,0.00013972,2]
[360941480,1747159851528,-400.0,0.00013972,2]
[360941481,1747159851539,-546.63,0.00013972,2]
[360941482,1747159851549,-400.0,0.00013972,2]
[360941483,1747159851559,-1864.64,0.00013972,2]
[360941484,1747159851569,-400.0,0.00013972,2]
[360941485,1747159851578,-400.0,0.00013972,2]
[360941486,1747159851588,-400.0,0.00013972,2]
[360941487,1747159851598,-400.0,0.00013972,2]
[360941488,1747159851608,-662.73,0.00013972,2]
[360941489,1747159851619,-2060.42,0.00013972,2]
[360941490,1747159851629,-400.0,0.00013972,2]
[360941491,1747159851639,-565.0,0.00013972,2]
[360941492,1747159851649,-400.0,0.00013972,2]
[360941493,1747159851658,-400.0,0.00013972,2]
[360941494,1747159851668,-440.79,0.00013972,2]
[360941495,1747159851678,-596.05,0.00013972,2]
[360941496,1747159851688,-730.42,0.00013972,2]
[360941497,1747159851698,-400.0,0.00013972,2]
[360941498,1747159851708,-400.0,0.00013972,2]
[360941499,1747159851717,-400.0,0.00013972,2]
[360941500,1747159851728,-400.0,0.00013972,2]
[360941501,1747159851739,-400.0,0.00013972,2]
[360941502,1747159851748,-1055.78,0.00013972,2]
[360941503,1747159851758,-642.18,0.00013972,2]
[360941504,1747159851768,-400.0,0.00013972,2]
[360941505,1747159851779,-1185.94,0.00013972,2]
[360941506,1747159851788,-864.57,0.00013972,2]
[360941507,1747159851798,-613.58,0.00013972,2]
[360941508,1747159851808,-400.0,0.00013972,2]
[360941509,1747159851818,-2299.68,0.00013972,2]
[360941510,1747159851830,-400.0,0.00013972,2]
[360941511,1747159851839,-400.0,0.00013972,2]
[360941512,1747159851849,-1286.3,0.00013972,2]
[360941513,1747159851858,-765.06,0.00013972,2]
[360941514,1747159851868,-576.23,0.00013972,2]
[360941515,1747159851878,-436.26,0.00013972,2]
[360941516,1747159851887,-1692.32,0.00013972,2]
[360941517,1747159851897,-691.36,0.00013972,2]
[360941518,1747159851907,-400.0,0.00013972,2]
[360941519,1747159851917,-400.0,0.00013972,2]
[360941520,1747159851927,-400.0,0.00013972,2]
[360941521,1747159851937,-400.0,0.00013972,2]
[360941522,1747159851947,-410.33,0.00013972,2]
[360941523,1747159851956,-584.48,0.00013972,2]
[360941524,1747159851966,-627.34,0.00013972,2]
[360941525,1747159851975,-4119.34,0.00013972,2]
[360941526,1747159851985,-1000.0,0.00013972,2]
[360941527,1747159851995,-400.0,0.00013972,2]
[360941528,1747159852005,-656.35,0.00013972,2]
[360941529,1747159852014,-400.0,0.00013972,2]
[360941530,1747159852022,-400.0,0.00013972,2]
[360941531,1747159852030,-551.43,0.00013972,2]
[360941532,1747159852039,-962.51,0.00013972,2]
[360941533,1747159852048,-5645.08,0.00013972,2]
[360941534,1747159852056,-400.0,0.00013972,2]
[360941535,1747159852063,-488.73,0.00013972,2]
[360941536,1747159852071,-400.0,0.00013972,2]
[360941537,1747159852079,-400.0,0.00013972,2]
[360941538,1747159852088,-400.0,0.00013972,2]
[360941539,1747159852096,-4844.87,0.00013972,2]
[360941540,1747159852104,-575.46,0.00013972,2]
[360941541,1747159852112,-465.04,0.00013972,2]
[360941542,1747159852120,-400.0,0.00013972,2]
[360941543,1747159852128,-834.8,0.00013972,2]
[360941544,1747159852135,-400.0,0.00013972,2]
[360941545,1747159852145,-1188.41,0.00013972,2]
[360941546,1747159852158,-400.0,0.00013972,2]
[360941547,1747159852167,-400.0,0.00013972,2]
[360941548,1747159852176,-400.0,0.00013972,2]
[360941549,1747159852187,-668.66,0.00013972,2]
[360941550,1747159852199,-400.0,0.00013972,2]
[360941551,1747159852208,-625.36,0.00013972,2]
[360941552,1747159852217,-400.0,0.00013972,2]
[360941553,1747159852227,-400.0,0.00013972,2]
[360941554,1747159852235,-781.35,0.00013972,2]
[360941555,1747159852243,-400.0,0.00013972,2]
[360941556,1747159852251,-400.0,0.00013972,2]
[360941557,1747159852260,-400.0,0.00013972,2]
[360941558,1747159852268,-482.55416403,0.00013972,2]
[360941559,1747159852276,-1914.81,0.00013972,2]
[360941560,1747159852284,-1766.41,0.00013972,2]
[360941561,1747159852293,-400.0,0.00013972,2]
[360941562,1747159852302,-536.58,0.00013972,2]
[360941563,1747159852311,-180.98736879,0.00013972,2]
[360941564,1747159852320,-400.0,0.00013972,2]
[360941565,1747159852330,-400.0,0.00013972,2]
[360941566,1747159852340,-1145.96,0.00013972,2]
[360941567,1747159852543,-785.72,0.00013972,2]
[360941568,1747159852603,-400.0,0.00013972,2]
[360941569,1747159852613,-400.0,0.00013972,2]
[360941570,1747159852621,-400.0,0.00013972,2]
[360941571,1747159852629,-507.18,0.00013972,2]
[360941572,1747159852637,-1772.03,0.00013972,2]
[360941573,1747159852645,-400.0,0.00013972,2]
[360941574,1747159852654,-400.0,0.00013972,2]
[360941575,1747159852662,-701.6,0.00013972,2]
[360941576,1747159852670,-400.0,0.00013972,2]
[360941577,1747159852678,-400.0,0.00013972,2]
[360941578,1747159852688,-400.0,0.00013972,2]
[360941579,1747159852697,-400.0,0.00013972,2]
[360941580,1747159852705,-531.59,0.00013972,2]
[360941581,1747159852714,-400.0,0.00013972,2]
[360941582,1747159852722,-447.84,0.00013972,2]
[360941583,1747159852729,-400.0,0.00013972,2]
[360941584,1747159852737,-434.67,0.00013972,2]
[360941585,1747159852746,-439.79,0.00013972,2]
[360941586,1747159852754,-400.0,0.00013972,2]
[360941587,1747159852763,-673.75,0.00013972,2]
[360941588,1747159852773,-400.0,0.00013972,2]
[360941589,1747159852783,-400.0,0.00013972,2]
[360941590,1747159852793,-400.0,0.00013972,2]
[360941591,1747159852803,-605.02,0.00013972,2]
[360941592,1747159852813,-400.0,0.00013972,2]
[360941593,1747159852823,-773.56,0.00013972,2]
[360941594,1747159852833,-2675.77,0.00013972,2]
[360941595,1747159852843,-400.0,0.00013972,2]
[360941596,1747159852852,-400.0,0.00013972,2]
[360941597,1747159852862,-400.0,0.00013972,2]
[360941598,1747159852873,-543.38,0.00013972,2]
[360941599,1747159852884,-400.0,0.00013972,2]
[360941600,1747159852894,-400.0,0.00013972,2]
[360941601,1747159852904,-400.0,0.00013972,2]
[360941602,1747159852914,-1283.37,0.00013972,2]
[360941603,1747159852924,-533.21,0.00013972,2]
[360941604,1747159852934,-400.0,0.00013972,2]
[360941605,1747159852944,-400.0,0.00013972,2]
[360941606,1747159852954,-400.0,0.00013972,2]
[360941607,1747159852965,-655.22,0.00013972,2]
[360941608,1747159852975,-761.28,0.00013972,2]
[360941609,1747159852986,-497.95,0.00013972,2]
[360941610,1747159852995,-991.1,0.00013972,2]
[360941611,1747159853006,-464.41,0.00013972,2]
[360941612,1747159853016,-410.67,0.00013972,2]
[360941613,1747159853026,-400.0,0.00013972,2]
[360941614,1747159853050,-400.0,0.00013972,2]
[360941615,1747159853062,-504.42,0.00013972,2]
[360941616,1747159853073,-400.0,0.00013972,2]
[360941617,1747159853086,-400.0,0.00013972,2]
[360941618,1747159853097,-400.0,0.00013972,2]
[360941619,1747159853108,-400.0,0.00013972,2]
[360941620,1747159853120,-400.0,0.00013972,2]
[360941621,1747159853131,-1727.24,0.00013972,2]
[360941622,1747159853144,-400.0,0.00013972,2]
[360941623,1747159853158,-400.0,0.00013972,2]
[360941624,1747159853169,-816.44,0.00013972,2]
[360941625,1747159853180,-606.45,0.00013972,2]
[360941626,1747159853192,-400.0,0.00013972,2]
[360941627,1747159853204,-449.32982126,0.00013972,2]
[360941628,1747159853215,-1744.62,0.00013972,2]
[360941629,1747159853227,-458.81033719,0.00013972,2]
[360941630,1747159853239,-974.42,0.00013972,2]
[360941631,1747159853250,-400.0,0.00013972,2]
[360941632,1747159853261,-600.82,0.00013972,2]
[360941633,1747159853272,-365.04900472,0.00013972,2]
[360941634,1747159853283,-400.0,0.00013972,2]
[360941635,1747159853294,-400.0,0.00013972,2]
[360941636,1747159853306,-400.0,0.00013972,2]
[360941637,1747159853316,-400.0,0.00013972,2]
[360941638,1747159853327,-934.93,0.00013972,2]
[360941639,1747159853338,-400.0,0.00013972,2]
[360941640,1747159853351,-2486.41,0.00013972,2]
[360941641,1747159853368,-568.68,0.00013972,2]
[360941642,1747159853380,-891.56,0.00013972,2]
[360941643,1747159853398,-400.0,0.00013972,2]
[360941644,1747159853409,-400.0,0.00013972,2]
[360941645,1747159853420,-400.0,0.00013972,2]
[360941646,1747159853431,-400.0,0.00013972,2]
[360941647,1747159853442,-428.39,0.00013972,2]
[360941648,1747159853454,-446.9,0.00013972,2]
[360941649,1747159853465,-400.0,0.00013972,2]
[360941650,1747159853476,-630.88,0.00013972,2]
[360941651,1747159853486,-400.0,0.00013972,2]